fUSD/lending_fUSD_20250306
["ID","MTS","AMOUNT","RATE_DAILY","PERIOD"]
[355541948,1741249832298,-10060.0,0.00011,7]
[355541949,1741249832309,-5029.0,0.00011,7]
[355541950,1741249832319,-5029.0,0.00011,7]
[355541951,1741249832328,-5029.0,0.00011,7]
[355541952,1741249832337,-961.09,0.00011015,2]
[355541953,1741249832347,-162.18,0.00011036,2]
[355541954,1741249832357,-1251.9961,0.0001138,2]
[355541955,1741249832366,-1000.0,0.00011454,2]
[355541956,1741249832375,-1202.5842952,0.00011454,2]
[355541957,1741249832385,-150.99,0.00011454,2]
[355541958,1741249832394,-2325.34,0.00011454,2]
[355541959,1741249832404,-174.90607959,0.00011455,2]
[355541960,1741249832414,-29140.487,0.00011455,2]
[355541962,1741249832424,-13558.5941,0.00011456,2]
[355541964,1741249832434,-1000.0,0.00011456,2]
[355541966,1741249832443,-42695.67826263,0.0001148,2]
[355541968,1741249832453,-172.42,0.00011507,2]
[355541970,1741249832462,-500.0,0.0001155,2]
[355541972,1741249832472,-500.0,0.00011554,2]
[355541974,1741249832481,-500.0,0.00011554,2]
[355541976,1741249832491,-500.0,0.00011554,2]
[355541978,1741249832502,-500.0,0.00011554,2]
[355541980,1741249832511,-656.55,0.00011554,2]
[355541982,1741249832521,-500.0,0.00011554,2]
[355541983,1741249832530,-717.89,0.00011554,2]
[355541985,1741249832539,-500.0,0.00011554,2]
[355541987,1741249832549,-500.0,0.00011554,2]
[355541989,1741249832558,-500.0,0.00011554,2]
[355541991,1741249832568,-500.0,0.00011554,2]
[355541992,1741249832579,-500.0,0.00011554,2]
[355541994,1741249832589,-500.0,0.00011554,2]
[355541996,1741249832598,-500.0,0.00011554,2]
[355541998,1741249832607,-500.0,0.00011554,2]
[355542000,1741249832616,-587.46,0.00011554,2]
[355542002,1741249832626,-500.0,0.00011554,2]
[355542004,1741249832635,-696.32,0.00011554,2]
[355542006,1741249832644,-500.0,0.00011554,2]
[355542008,1741249832653,-724.16,0.00011554,2]
[355542010,1741249832663,-500.0,0.00011554,2]
[355542012,1741249832672,-797.53,0.00011554,2]
[355542014,1741249832681,-500.0,0.00011554,2]
[355542016,1741249832691,-500.0,0.00011554,2]
[355542018,1741249832700,-500.0,0.00011554,2]
[355542020,1741249832710,-500.0,0.00011554,2]
[355542022,1741249832720,-639.98414072,0.00011554,2]
[355542024,1741249832729,-791.73,0.00011554,2]
[355542026,1741249832738,-500.0,0.00011554,2]
[355542028,1741249832747,-500.0,0.00011554,2]
[355542030,1741249832757,-500.0,0.00011554,2]
[355542032,1741249832766,-500.0,0.00011554,2]
[355542033,1741249832775,-808.27,0.00011554,2]
[355542035,1741249832784,-500.0,0.00011554,2]
[355542037,1741249832794,-680.16,0.00011554,2]
[355542039,1741249832803,-510.9,0.00011554,2]
[355542041,1741249832813,-598.93,0.00011554,2]
[355542043,1741249832822,-508.8,0.00011554,2]
[355542064,1741249833058,-785.75,0.00011554,2]
[355542065,1741249833070,-464.06481289,0.00011554,2]
[355542066,1741249833080,-4919.11,0.00011554,2]
[355542067,1741249833090,-873.43,0.00011554,2]
[355542068,1741249833100,-3965.27,0.00011554,2]
[355542069,1741249833110,-1720.7,0.00011554,2]
[355542070,1741249833120,-845.175372,0.00011554,2]
[355542071,1741249833130,-523.7,0.00011554,2]
[355542073,1741249833140,-2802.97,0.00011554,2]
[355542074,1741249833149,-1369.55,0.00011554,2]
[355542075,1741249833159,-500.0,0.00011554,2]
[355542076,1741249833169,-500.0,0.00011554,2]
[355542077,1741249833179,-2052.47,0.00011554,2]
[355542078,1741249833189,-1359.305881,0.00011554,2]
[355542079,1741249833198,-500.0,0.00011554,2]
[355542080,1741249833208,-162.866886,0.00011554,2]
[355542081,1741249833218,-1416.37,0.00011554,2]
[355542082,1741249833228,-1934.97,0.00011554,2]
[355542083,1741249833239,-2668.78,0.00011554,2]
[355542084,1741249833248,-695.22,0.00011554,2]
[355542085,1741249833258,-3715.0,0.00011554,2]
[355542086,1741249833268,-778.68,0.00011554,2]
[355542087,1741249833278,-1193.62,0.00011554,2]
[355542088,1741249833287,-727.1,0.00011554,2]
[355542089,1741249833298,-1451.58,0.00011554,2]
[355542090,1741249833307,-796.37,0.00011554,2]
[355542091,1741249833319,-500.0,0.00011554,2]
[355542092,1741249833329,-1702.95,0.00011554,2]
[355542093,1741249833339,-500.92,0.00011554,2]
[355542094,1741249833348,-739.15,0.00011554,2]
[355542095,1741249833358,-1569.51,0.00011554,2]
[355542096,1741249833368,-931.26,0.00011554,2]
[355542097,1741249833378,-992.47,0.00011554,2]
[355542098,1741249833387,-960.46,0.00011554,2]
[355542099,1741249833396,-679.81,0.00011554,2]
[355542100,1741249833406,-1781.41,0.00011554,2]
[355542101,1741249833416,-1738.49,0.00011554,2]
[355542102,1741249833426,-500.0,0.00011554,2]
[355542103,1741249833435,-2451.55,0.00011554,2]
[355542104,1741249833446,-680.74,0.00011554,2]
[355542105,1741249833456,-1395.74,0.00011554,2]
[355542106,1741249833466,-1058.04,0.00011554,2]
[355542107,1741249833476,-1618.78,0.00011554,2]
[355542108,1741249833487,-1988.49,0.00011554,2]
[355542109,1741249833500,-758.0,0.00011554,2]
[355542110,1741249833510,-500.0,0.00011554,2]
[355542111,1741249833519,-3588.97,0.00011554,2]
[355542112,1741249833530,-500.0,0.00011554,2]
[355542113,1741249833547,-500.0,0.00011554,2]
[355542114,1741249833557,-1477.72,0.00011554,2]
[355542115,1741249833569,-788.67,0.00011554,2]
[355542116,1741249833581,-500.0,0.00011554,2]
[355542117,1741249833591,-1415.39,0.00011554,2]
[355542118,1741249833600,-500.0,0.00011554,2]
[355542119,1741249833610,-500.0,0.00011554,2]
[355542120,1741249833620,-1446.21,0.00011554,2]
[355542121,1741249833630,-1427.79,0.00011554,2]
[355542122,1741249833640,-1037.76,0.00011554,2]
[355542123,1741249833652,-1588.77,0.00011554,2]
[355542124,1741249833661,-7760.16,0.00011554,2]
[355542125,1741249833671,-1303.99,0.00011554,2]
[355542126,1741249833681,-500.0,0.00011554,2]
[355542127,1741249833691,-500.0,0.00011554,2]
[355542128,1741249833700,-2943.82,0.00011554,2]
[355542129,1741249833710,-673.43,0.00011554,2]
[355542130,1741249833720,-686.4,0.00011554,2]
[355542131,1741249833730,-1255.2,0.00011554,2]
[355542132,1741249833740,-619.93,0.00011554,2]
[355542133,1741249833750,-500.0,0.00011554,2]
[355542134,1741249833760,-632.87,0.00011554,2]
[355542135,1741249833769,-500.0,0.00011554,2]
[355542136,1741249833779,-912.13,0.00011554,2]
[355542137,1741249833789,-592.92,0.00011554,2]
[355542138,1741249833799,-356.5060339,0.00011554,2]
[355542139,1741249833809,-523.03,0.00011554,2]
[355542140,1741249833820,-995.37,0.00011554,2]
[355542141,1741249833831,-851.97,0.00011554,2]
[355542142,1741249833841,-500.0,0.00011554,2]
[355542143,1741249833850,-732.25,0.00011554,2]
[355542144,1741249833861,-500.0,0.00011554,2]
[355542145,1741249833870,-500.0,0.00011554,2]
[355542146,1741249833880,-500.0,0.00011555,2]
[355542147,1741249833890,-500.0,0.00011555,2]
[355542148,1741249833899,-557.26,0.00011555,2]
[355542149,1741249833909,-500.0,0.00011555,2]
[355542150,1741249833918,-500.0,0.00011555,2]
[355542151,1741249833928,-500.0,0.00011555,2]
[355542152,1741249833937,-365.86,0.00011555,2]
[355542153,1741249833947,-377.92,0.00011555,2]
[355542154,1741249833957,-500.0,0.00011555,2]
[355542155,1741249833967,-500.0,0.00011555,2]
[355542156,1741249833977,-500.0,0.00011555,2]
[355542157,1741249833986,-500.0,0.00011555,2]
[355542158,1741249833995,-500.0,0.00011555,2]
[355542159,1741249834005,-500.0,0.00011555,2]
[355542160,1741249834014,-500.0,0.00011555,2]
[355542161,1741249834024,-500.0,0.00011555,2]
[355542162,1741249834035,-500.0,0.00011555,2]
[355542163,1741249834044,-500.0,0.00011555,2]
[355542164,1741249834054,-500.0,0.00011555,2]
[355542165,1741249834064,-500.0,0.00011555,2]
[355542166,1741249834075,-436.17,0.00011555,2]
[355542167,1741249834084,-500.0,0.00011555,2]
[355542168,1741249834094,-500.0,0.00011555,2]
[355542169,1741249834103,-500.0,0.00011555,2]
[355542170,1741249834113,-500.0,0.00011555,2]
[355542171,1741249834123,-621.64998993,0.00011555,2]
[355542172,1741249834133,-500.0,0.00011555,2]
[355542173,1741249834143,-500.0,0.00011555,2]
[355542174,1741249834153,-500.0,0.00011555,2]
[355542175,1741249834163,-500.0,0.00011555,2]
[355542176,1741249834173,-500.0,0.00011555,2]
[355542177,1741249834182,-575.34,0.00011555,2]
[355542178,1741249834192,-500.0,0.00011555,2]
[355542179,1741249834202,-500.0,0.00011555,2]
[355542180,1741249834212,-490.14,0.00011555,2]
[355542181,1741249834222,-500.0,0.00011555,2]
[355542182,1741249834232,-500.0,0.00011555,2]
[355542183,1741249834241,-672.6,0.00011555,2]
[355542184,1741249834251,-411.65142411,0.00011555,2]
[355542185,1741249834260,-500.0,0.00011555,2]
[355542186,1741249834270,-553.80466251,0.00011555,2]
[355542187,1741249834279,-500.0,0.00011555,2]
[355542188,1741249834289,-500.0,0.00011555,2]
[355542189,1741249834299,-500.0,0.00011555,2]
[355542190,1741249834308,-500.0,0.00011555,2]
[355542191,1741249834319,-500.0,0.00011555,2]
[355542192,1741249834328,-500.0,0.00011555,2]
[355542193,1741249834338,-500.0,0.00011555,2]
[355542194,1741249834348,-398.11,0.00011555,2]
[355542195,1741249834358,-500.0,0.00011555,2]
[355542196,1741249834368,-667.79,0.00011555,2]
[355542197,1741249834378,-500.0,0.00011555,2]
[355542198,1741249834387,-516.67139971,0.00011555,2]
[355542199,1741249834397,-500.0,0.00011555,2]
[355542200,1741249834407,-820.79,0.00011555,2]
[355542201,1741249834417,-620.42,0.00011555,2]
[355542202,1741249834427,-500.0,0.00011555,2]
[355542203,1741249834437,-541.47,0.00011555,2]
[355542204,1741249834450,-658.54,0.00011555,2]
[355542205,1741249834461,-511.61985077,0.00011555,2]
[355542206,1741249834471,-500.0,0.00011555,2]
[355542207,1741249834482,-674.14,0.00011555,2]
[355542208,1741249834493,-500.0,0.00011555,2]
[355542209,1741249834506,-500.0,0.00011555,2]
[355542210,1741249834516,-570.6743429,0.00011555,2]
[355542211,1741249834526,-202.92,0.00011555,2]
[355542212,1741249834536,-500.0,0.00011555,2]
[355542213,1741249834547,-500.0,0.00011555,2]
[355542214,1741249834557,-500.0,0.00011555,2]
[355542215,1741249834568,-159.85,0.00011555,2]
[355542216,1741249834578,-632.9,0.00011555,2]
[355542217,1741249834588,-1036.3,0.00011555,2]
[355542218,1741249834598,-1229.72,0.00011555,2]
[355542219,1741249834608,-500.0,0.00011555,2]
[355542220,1741249834618,-500.0,0.00011555,2]
[355542221,1741249834628,-500.0,0.00011555,2]
[355542222,1741249834638,-1699.73,0.00011555,2]
[355542223,1741249834648,-901.89,0.00011555,2]
[355542224,1741249834658,-974.69,0.00011555,2]
[355542225,1741249834668,-843.32,0.00011555,2]
[355542226,1741249834677,-755.33,0.00011555,2]
[355542227,1741249834687,-1905.12,0.00011555,2]
[355542228,1741249834696,-1241.68,0.00011555,2]
[355542229,1741249834706,-500.0,0.00011555,2]
[355542230,1741249834716,-5546.61,0.00011555,2]
[355542231,1741249834726,-1134.54,0.00011555,2]
[355542232,1741249834736,-3175.18,0.00011555,2]
[355542233,1741249834745,-500.0,0.00011555,2]
[355542234,1741249834755,-500.0,0.00011555,2]
[355542235,1741249834765,-500.0,0.00011555,2]
[355542236,1741249834775,-946.82,0.00011555,2]
[355542237,1741249834784,-500.0,0.00011555,2]
[355542238,1741249834794,-3201.43,0.00011555,2]
[355542239,1741249834804,-500.0,0.00011555,2]
[355542240,1741249834814,-500.0,0.00011555,2]
[355542241,1741249834823,-1573.39,0.00011555,2]
[355542242,1741249834832,-1230.11,0.00011555,2]
[355542243,1741249834842,-209.91,0.00011555,2]
[355542244,1741249834851,-9616.77,0.00011555,2]
[355542245,1741249834861,-500.0,0.00011555,2]
[355542246,1741249834870,-2060.61,0.00011555,2]
[355542247,1741249834880,-500.0,0.00011555,2]
[355542248,1741249834889,-1483.39,0.00011555,2]
[355542249,1741249834899,-500.0,0.00011555,2]
[355542250,1741249834908,-1258.59,0.00011555,2]
[355542251,1741249834918,-1070.01,0.00011555,2]
[355542252,1741249834927,-500.0,0.00011555,2]
[355542253,1741249834937,-500.0,0.00011555,2]
[355542254,1741249834946,-1375.64,0.00011555,2]
[355542255,1741249834956,-2514.78,0.00011555,2]
[355542256,1741249834966,-500.0,0.00011555,2]
[355542257,1741249834975,-500.0,0.00011555,2]
[355542258,1741249834985,-500.0,0.00011555,2]
[355542259,1741249834994,-560.82,0.00011555,2]
[355542260,1741249835004,-500.0,0.00011555,2]
[355542261,1741249835014,-1747.78,0.00011555,2]
[355542262,1741249835023,-1000.0,0.00011555,2]
[355542263,1741249835032,-2286.04,0.00011555,2]
[355542264,1741249835041,-4052.53,0.00011555,2]
[355542265,1741249835051,-1103.82,0.00011555,2]
[355542266,1741249835063,-500.0,0.00011555,2]
[355542267,1741249835073,-1111.89,0.00011555,2]
[355542268,1741249835083,-362.51932177,0.00011555,2]
[355542269,1741249835092,-969.88,0.00011555,2]
[355542270,1741249835102,-500.0,0.00011555,2]
[355542271,1741249835111,-500.0,0.00011555,2]
[355542272,1741249835120,-637.97,0.00011555,2]
[355542273,1741249835130,-966.95,0.00011555,2]
[355542274,1741249835140,-546.4,0.00011555,2]
[355542275,1741249835150,-578.76,0.00011555,2]
[355542276,1741249835160,-500.0,0.00011555,2]
[355542277,1741249835170,-500.0,0.00011555,2]
[355542278,1741249835180,-715.24,0.00011555,2]
[355542279,1741249835191,-1262.27,0.00011555,2]
[355542280,1741249835201,-500.0,0.00011555,2]
[355542281,1741249835210,-500.0,0.00011555,2]
[355542282,1741249835220,-1292.51,0.00011555,2]
[355542283,1741249835230,-1146.17,0.00011555,2]
[355542284,1741249835239,-500.0,0.00011555,2]
[355542285,1741249835249,-500.0,0.00011555,2]
[355542286,1741249835258,-3203.54,0.00011555,2]
[355542287,1741249835268,-1369.04,0.00011555,2]
[355542288,1741249835277,-500.0,0.00011556,2]
[355542289,1741249835287,-500.0,0.00011556,2]
[355542290,1741249835296,-2342.74,0.000116,2]
[355542291,1741249835306,-1202.58429514,0.00011615,2]
[355542292,1741249835318,-150.0,0.00011643,2]
[355542293,1741249835328,-494.43,0.000117,2]
[355542294,1741249835337,-782.65507,0.0001171,2]
[355542295,1741249835347,-3002.4425,0.00011729,2]
[355542296,1741249835357,-181.83288042,0.0001173,2]
[355542297,1741249835366,-10033.591,0.0001173,2]
[355542298,1741249835375,-1202.58429514,0.00011775,2]
[355542299,1741249835385,-174.90607957,0.00011816,2]
[355542300,1741249835395,-179.64460433,0.00011819,2]
[355542301,1741249835404,-316.44002337,0.00011826,2]
[355542302,1741249835414,-500.0,0.00011826,2]
[355542303,1741249835424,-500.0,0.00011826,2]
[355542304,1741249835434,-500.0,0.00011826,2]
[355542305,1741249835444,-500.0,0.00011826,2]
[355542306,1741249835453,-500.0,0.00011826,2]
[355542307,1741249835463,-500.0,0.00011826,2]
[355542308,1741249835472,-500.0,0.00011826,2]
[355542309,1741249835482,-500.0,0.00011826,2]
[355542310,1741249835495,-500.0,0.00011826,2]
[355542311,1741249835510,-574.50723574,0.00011826,2]
[355542312,1741249835519,-500.0,0.00011826,2]
[355542313,1741249835529,-500.0,0.00011826,2]
[355542314,1741249835539,-500.0,0.00011826,2]
[355542315,1741249835550,-500.0,0.00011826,2]
[355542316,1741249835560,-500.0,0.00011826,2]
[355542317,1741249835572,-300.0,0.00011826,2]
[355542318,1741249835583,-500.0,0.00011826,2]
[355542319,1741249835592,-500.0,0.00011826,2]
[355542320,1741249835601,-340839.97259562,0.00011827,2]
[355542321,1741249835611,-476.55994294,0.00011828,2]
[355542322,1741249835620,-476.26,0.00011828,2]
[355542323,1741249835630,-248.53,0.00011828,2]
[355542324,1741249835640,-190.79,0.00011828,2]
[355542325,1741249835649,-500.0,0.00011828,2]
[355542326,1741249835659,-468.65,0.00011828,2]
[355542327,1741249835669,-500.0,0.00011828,2]
[355542328,1741249835679,-500.0,0.00011828,2]
[355542329,1741249835688,-602.62,0.00011828,2]
[355542330,1741249835697,-202.57,0.00011828,2]
[355542331,1741249835707,-44853.15844757,0.00011828,2]
[355542332,1741249835978,-171356.7973197,0.00011828,2]
[355542333,1741249835986,-500.0,0.00011828,2]
[355542334,1741249835994,-500.0,0.00011828,2]
[355542335,1741249836001,-500.0,0.00011828,2]
[355542336,1741249836010,-500.0,0.00011828,2]
[355542337,1741249836018,-500.0,0.00011828,2]
[355542338,1741249836025,-500.0,0.00011828,2]
[355542339,1741249836033,-500.0,0.00011828,2]
[355542340,1741249836042,-528.71,0.00011828,2]
[355542341,1741249836050,-500.0,0.00011828,2]
[355542342,1741249836058,-500.0,0.00011828,2]
[355542343,1741249836068,-500.0,0.00011828,2]
[355542344,1741249836076,-509.9125138,0.00011828,2]
[355542345,1741249836084,-500.0,0.00011828,2]
[355542346,1741249836092,-500.0,0.00011828,2]
[355542347,1741249836101,-500.0,0.00011828,2]
[355542348,1741249836108,-656.55,0.00011828,2]
[355542349,1741249836116,-500.0,0.00011828,2]
[355542350,1741249836125,-500.0,0.00011828,2]
[355542351,1741249836134,-500.0,0.00011828,2]
[355542352,1741249836143,-717.89,0.00011828,2]
[355542353,1741249836152,-500.0,0.00011828,2]
[355542354,1741249836162,-500.0,0.00011828,2]
[355542355,1741249836172,-513.86,0.00011828,2]
[355542356,1741249836183,-500.0,0.00011828,2]
[355542357,1741249836193,-303.8,0.00011828,2]
[355542358,1741249836203,-500.0,0.00011828,2]
[355542359,1741249836213,-500.0,0.00011828,2]
[355542360,1741249836223,-500.0,0.00011828,2]
[355542361,1741249836232,-500.0,0.00011828,2]
[355542362,1741249836242,-500.0,0.00011828,2]
[355542363,1741249836252,-500.0,0.00011828,2]
[355542364,1741249836261,-500.0,0.00011828,2]
[355542365,1741249836272,-500.0,0.00011828,2]
[355542366,1741249836281,-500.0,0.00011828,2]
[355542367,1741249836290,-500.0,0.00011828,2]
[355542368,1741249836300,-500.0,0.00011828,2]
[355542369,1741249836309,-500.0,0.00011828,2]
[355542370,1741249836321,-500.0,0.00011828,2]
[355542371,1741249836331,-500.0,0.00011828,2]
[355542372,1741249836341,-500.0,0.00011828,2]
[355542373,1741249836351,-500.0,0.00011828,2]
[355542374,1741249836360,-500.0,0.00011828,2]
[355542375,1741249836370,-500.0,0.00011828,2]
[355542376,1741249836379,-500.0,0.00011828,2]
[355542377,1741249836388,-587.46,0.00011828,2]
[355542378,1741249836397,-500.0,0.00011828,2]
[355542379,1741249836407,-500.0,0.00011828,2]
[355542380,1741249836416,-500.0,0.00011828,2]
[355542381,1741249836426,-500.0,0.00011828,2]
[355542382,1741249836436,-575.01758304,0.00011828,2]
[355542383,1741249836445,-495.91378619,0.00011828,2]
[355542384,1741249836455,-500.0,0.00011828,2]
[355542385,1741249836464,-500.0,0.00011828,2]
[355542386,1741249836474,-510.7883896,0.00011828,2]
[355542387,1741249836484,-500.0,0.00011828,2]
[355542388,1741249836497,-503.21446903,0.00011828,2]
[355542389,1741249836507,-500.0,0.00011828,2]
[355542390,1741249836517,-500.0,0.00011828,2]
[355542391,1741249836526,-500.0,0.00011828,2]
[355542392,1741249836536,-564.49792574,0.00011828,2]
[355542393,1741249836546,-500.0,0.00011828,2]
[355542394,1741249836556,-500.0,0.00011828,2]
[355542395,1741249836568,-696.32,0.00011828,2]
[355542396,1741249836578,-500.0,0.00011828,2]
[355542397,1741249836587,-500.0,0.00011828,2]
[355542398,1741249836597,-500.0,0.00011828,2]
[355542399,1741249836606,-500.0,0.00011828,2]
[355542400,1741249836615,-504.0075597,0.00011828,2]
[355542401,1741249836625,-500.0,0.00011828,2]
[355542402,1741249836634,-500.0,0.00011828,2]
[355542403,1741249836643,-724.16,0.00011828,2]
[355542404,1741249836652,-500.0,0.00011828,2]
[355542405,1741249836661,-500.0,0.00011828,2]
[355542406,1741249836670,-522.4882188,0.00011828,2]
[355542407,1741249836680,-500.0,0.00011828,2]
[355542408,1741249836689,-797.53,0.00011828,2]
[355542409,1741249836698,-515.79473093,0.00011828,2]
[355542410,1741249836707,-500.0,0.00011828,2]
[355542411,1741249836716,-500.0,0.00011828,2]
[355542412,1741249836725,-500.0,0.00011828,2]
[355542413,1741249836734,-500.0,0.00011828,2]
[355542414,1741249836742,-500.0,0.00011828,2]
[355542415,1741249836751,-436.64257501,0.00011828,2]
[355542416,1741249836760,-500.0,0.00011828,2]
[355542417,1741249836769,-500.0,0.00011828,2]
[355542418,1741249836778,-500.0,0.00011828,2]
[355542419,1741249836786,-500.0,0.00011828,2]
[355542420,1741249836794,-500.0,0.00011828,2]
[355542421,1741249836800,-791.73,0.00011828,2]
[355542422,1741249836809,-500.0,0.00011828,2]
[355542423,1741249836820,-500.0,0.00011828,2]
[355542424,1741249836830,-500.0,0.00011828,2]
[355542425,1741249836840,-500.0,0.00011828,2]
[355542426,1741249836849,-500.0,0.00011828,2]
[355542427,1741249836859,-500.0,0.00011828,2]
[355542428,1741249836868,-500.0,0.00011828,2]
[355542429,1741249836878,-500.0,0.00011828,2]
[355542430,1741249836888,-188.50160488,0.00011828,2]
[355542431,1741249836897,-500.0,0.00011828,2]
[355542432,1741249837123,-500.0,0.00011828,2]
[355542433,1741249837130,-500.0,0.00011828,2]
[355542434,1741249837137,-500.0,0.00011828,2]
[355542435,1741249837144,-500.0,0.00011828,2]
[355542436,1741249837151,-506.70387741,0.00011828,2]
[355542437,1741249837157,-500.0,0.00011828,2]
[355542438,1741249837165,-808.27,0.00011828,2]
[355542439,1741249837172,-500.0,0.00011828,2]
[355542440,1741249837179,-500.0,0.00011828,2]
[355542441,1741249837185,-350.0,0.00011828,2]
[355542442,1741249837192,-500.0,0.00011828,2]
[355542443,1741249837200,-500.0,0.00011828,2]
[355542444,1741249837207,-500.0,0.00011828,2]
[355542445,1741249837214,-500.0,0.00011828,2]
[355542446,1741249837224,-606.57987396,0.00011828,2]
[355542447,1741249837234,-500.0,0.00011828,2]
[355542448,1741249837243,-500.0,0.00011828,2]
[355542449,1741249837253,-680.16,0.00011828,2]
[355542450,1741249837262,-510.9,0.00011828,2]
[355542451,1741249837271,-500.0,0.00011828,2]
[355542452,1741249837281,-500.0,0.00011828,2]
[355542453,1741249837291,-500.0,0.00011828,2]
[355542454,1741249837302,-500.0,0.00011828,2]
[355542455,1741249837311,-598.93,0.00011828,2]
[355542456,1741249837322,-508.8,0.00011828,2]
[355542457,1741249837332,-500.0,0.00011828,2]
[355542458,1741249837342,-785.75,0.00011828,2]
[355542459,1741249837351,-500.0,0.00011828,2]
[355542460,1741249837361,-4919.11,0.00011828,2]
[355542461,1741249837370,-873.43,0.00011828,2]
[355542462,1741249837380,-500.0,0.00011828,2]
[355542463,1741249837390,-500.0,0.00011828,2]
[355542464,1741249837400,-843.32,0.00011828,2]
[355542465,1741249837409,-500.0,0.00011828,2]
[355542466,1741249837419,-3965.27,0.00011828,2]
[355542467,1741249837428,-232.90304062,0.00011828,2]
[355542468,1741249837443,-474.18521572,0.00011828,2]
[355542469,1741249837457,-1013.61174366,0.00011828,2]
[355542470,1741249837466,-500.0,0.00011828,2]
[355542471,1741249837475,-570.48050816,0.00011828,2]
[355542472,1741249837602,-228.17097782,0.00011827,3]
[355542473,1741249837611,-274.69486384,0.00011828,2]
[355542474,1741249837620,-500.0,0.00011828,2]
[355542475,1741249837630,-523.7,0.00011828,2]
[355542476,1741249837639,-2802.97,0.00011828,2]
[355542477,1741249837648,-1369.55,0.00011828,2]
[355542478,1741249837658,-500.0,0.00011828,2]
[355542479,1741249837667,-51.6162908,0.00011828,2]
[355542480,1741249837679,-448.3837092,0.00011828,2]
[355542481,1741249837689,-84.83644283,0.00011828,2]
[355542482,1741249837700,-626.0,0.00011828,2]
[355542488,1741249837986,-807.09635714,0.00011828,2]
[355542489,1741249838000,-534.53720003,0.00011828,2]
[355542490,1741249838010,-1359.305881,0.00011828,2]
[355542491,1741249838021,-241.99901579,0.00011828,2]
[355542495,1741249838564,-258.00098421,0.00011828,2]
[355542496,1741249838576,-500.0,0.00011828,2]
[355542497,1741249838586,-108.19901579,0.00011828,2]
[355542498,1741249838599,-517.34603854,0.00011828,2]
[355542499,1741249838618,-790.82494567,0.00011828,2]
[355542501,1741249838628,-1934.97,0.00011828,2]
[355542503,1741249838638,-500.0,0.00011828,2]
[355542504,1741249838647,-865.56505433,0.00011828,2]
[355542505,1741249838659,-1803.21494567,0.00011828,2]
[355542506,1741249838669,-433.30505433,0.00011828,2]
[355542508,1741249840089,-549.02,0.00011554,2]
[355542509,1741249840099,-94.63507974,0.00011555,2]
[355542510,1741249840252,-434.54746564,0.00011555,2]
[355542511,1741249840310,-649.29745462,0.00011555,2]
[355542512,1741249840322,-66.69494567,0.00011828,2]
[355542513,1741249840332,-167.2667808,0.00011828,2]
[355542514,1741249840367,-332.7332192,0.00011828,2]
[355542515,1741249840377,-695.22,0.00011828,2]
[355542516,1741249840387,-198.9289831,0.00011828,2]
[355542592,1741249843575,-500.0,0.00011554,2]
[355542593,1741249843585,-168.04831871,0.00011554,2]
[355542594,1741249843597,-331.95168129,0.00011554,2]